fUST/lending_fUST_20250116
["ID","MTS","AMOUNT","RATE_DAILY","PERIOD"]
[349079046,1736962249712,-500.0,0.00020958,3]
[349079047,1736962249722,-500.0,0.00020958,3]
[349079048,1736962249732,-592.3,0.00020958,2]
[349079049,1736962249743,-9748.22,0.00020958,3]
[349079050,1736962249753,-500.0,0.00020958,3]
[349079051,1736962249763,-500.0,0.00020958,3]
[349079052,1736962249773,-500.0,0.00020958,3]
[349079053,1736962249784,-500.0,0.00020958,3]
[349079054,1736962249795,-494.3,0.00020958,3]
[349079055,1736962249805,-812.23,0.00020958,3]
[349079056,1736962249815,-1119.83,0.00020958,3]
[349079057,1736962249826,-746.63,0.00020958,3]
[349079058,1736962249836,-500.0,0.00020958,3]
[349079059,1736962249846,-2491.16,0.00020958,3]
[349079060,1736962249855,-1323.747913,0.00020958,2]
[349079061,1736962249865,-1323.747913,0.00020958,2]
[349079062,1736962249875,-229.011764,0.00020958,2]
[349079063,1736962249884,-229.011764,0.00020958,2]
[349079064,1736962249895,-15248.44,0.00020958,3]
[349079065,1736962249905,-6530.198668,0.00020958,2]
[349079066,1736962249915,-2389.069578,0.00020958,2]
[349079067,1736962249926,-1461.28,0.00020958,3]
[349079068,1736962249936,-6530.198668,0.00020958,2]
[349079069,1736962249946,-2389.069578,0.00020958,2]
[349079070,1736962249956,-534.97,0.00020958,3]
[349079071,1736962249966,-1343.69,0.00020958,3]
[349079072,1736962249976,-500.0,0.00020958,3]
[349079073,1736962249986,-151.0,0.00020958,2]
[349079074,1736962249996,-500.0,0.00020958,3]
[349079075,1736962250006,-151.0,0.00020958,2]
[349079076,1736962250016,-1285.86,0.00020958,3]
[349079077,1736962250025,-500.0,0.00020958,3]
[349079078,1736962250035,-716.02,0.00020958,3]
[349079079,1736962250045,-627.74,0.00020958,3]
[349079080,1736962250055,-769.62,0.00020958,3]
[349079081,1736962250071,-578.53,0.00020958,3]
[349079082,1736962250082,-4310.93,0.00020958,3]
[349079083,1736962250092,-500.0,0.00020958,3]
[349079084,1736962250102,-500.0,0.00020958,3]
[349079085,1736962250112,-500.0,0.00020958,3]
[349079086,1736962250123,-5818.567,0.00021,2]
[349079087,1736962250133,-1000.0,0.00021,21]
[349079088,1736962250143,-1000.0,0.00021,4]
[349079089,1736962250152,-150.0,0.00021,2]
[349079090,1736962250161,-151.0,0.00021,3]
[349079091,1736962250170,-158.225062,0.00021,2]
[349079092,1736962250179,-1228.19384605,0.00021003,2]
[349079093,1736962250190,-1020.063099,0.00021004,2]
[349079094,1736962250200,-1020.063099,0.00021004,2]
[349079095,1736962250210,-151.0,0.00021004,2]
[349079096,1736962250221,-151.0,0.00021004,2]
[349079097,1736962250311,-151.0,0.00021004,2]
[349079098,1736962250322,-1351.9307,0.00021004,2]
[349079099,1736962250332,-1351.9307,0.00021004,2]
[349079100,1736962250344,-161.704302,0.00021004,2]
[349079101,1736962250354,-161.704302,0.00021004,2]
[349079102,1736962250364,-500.0,0.00021022,2]
[349079103,1736962250374,-500.0,0.00021022,2]
[349079104,1736962250384,-654.79092281,0.00021074,2]
[349079105,1736962250397,-472.4502812,0.00021076,2]
[349079106,1736962250406,-1000.0,0.00021076,2]
[349079107,1736962250415,-151.0,0.00021095,2]
[349079108,1736962250424,-151.0,0.00021095,2]
[349079109,1736962250433,-151.0,0.00021095,2]
[349079110,1736962250443,-151.0,0.00021095,2]
[349079111,1736962250452,-500.0,0.00021095,3]
[349079112,1736962250461,-705.800601,0.00021095,2]
[349079113,1736962250471,-705.800601,0.00021095,2]
[349079114,1736962250480,-500.0,0.00021095,3]
[349079115,1736962250490,-151.0,0.00021095,2]
[349079116,1736962250500,-151.0,0.00021095,2]
[349079117,1736962250509,-151.0,0.00021095,2]
[349079118,1736962250519,-500.0,0.00021095,3]
[349079119,1736962250529,-500.0,0.00021095,3]
[349079120,1736962250539,-500.0,0.00021095,3]
[349079121,1736962250548,-500.0,0.00021095,3]
[349079122,1736962250558,-500.0,0.00021095,3]
[349079123,1736962250568,-2134.174093,0.00021095,2]
[349079124,1736962250577,-2134.174093,0.00021095,2]
[349079125,1736962250587,-500.0,0.00021095,3]
[349079126,1736962250596,-151.0,0.00021095,2]
[349079127,1736962250605,-592.3,0.00021095,2]
[349079128,1736962250614,-309.282555,0.00021095,2]
[349079129,1736962250623,-309.282555,0.00021095,2]
[349079130,1736962250633,-216.489252,0.00021095,2]
[349079131,1736962250645,-216.489252,0.00021095,2]
[349079132,1736962250655,-9748.22,0.00021095,3]
[349079133,1736962250664,-500.0,0.00021095,3]
[349079134,1736962250674,-500.0,0.00021095,3]
[349079135,1736962250683,-500.0,0.00021095,3]
[349079136,1736962250693,-576.61,0.00021095,3]
[349079137,1736962250703,-1002.999865,0.00021095,2]
[349079138,1736962250717,-1002.999865,0.00021095,2]
[349079139,1736962250728,-812.23,0.00021095,3]
[349079140,1736962250738,-1119.83,0.00021095,3]
[349079141,1736962250749,-746.63,0.00021095,3]
[349079142,1736962250759,-500.0,0.00021095,3]
[349079143,1736962250769,-2491.16,0.00021095,3]
[349079144,1736962250780,-15248.44,0.00021095,3]
[349079145,1736962250791,-1461.28,0.00021095,3]
[349079146,1736962250800,-534.97,0.00021095,3]
[349079147,1736962250810,-1343.69,0.00021095,3]
[349079148,1736962250820,-500.0,0.00021095,3]
[349079149,1736962250829,-500.0,0.00021095,3]
[349079150,1736962250839,-1285.86,0.00021095,3]
[349079151,1736962250848,-500.0,0.00021095,3]
[349079152,1736962250858,-716.02,0.00021095,3]
[349079153,1736962250868,-627.74,0.00021095,3]
[349079154,1736962250878,-769.62,0.00021095,3]
[349079155,1736962250887,-578.53,0.00021095,3]
[349079156,1736962250898,-4310.93,0.00021095,3]
[349079157,1736962250908,-500.0,0.00021095,3]
[349079158,1736962250918,-500.0,0.00021095,3]
[349079159,1736962250927,-500.0,0.00021095,3]
[349079160,1736962250937,-563.3586571,0.00021096,2]
[349079161,1736962250946,-158.225062,0.00021096,2]
[349079162,1736962250957,-1000.0,0.000211,2]
[349079163,1736962250967,-2291.01,0.000211,2]
[349079164,1736962250976,-1228.19384605,0.00021141,2]
[349079165,1736962250986,-500.82791859,0.0002121,2]
[349079166,1736962250995,-151.0,0.00021232,2]
[349079167,1736962251005,-151.0,0.00021232,2]
[349079168,1736962251015,-646.285619,0.00021232,2]
[349079169,1736962251025,-646.285619,0.00021232,2]
[349079170,1736962251035,-151.0,0.00021232,2]
[349079171,1736962251046,-169.020396,0.00021232,2]
[349079172,1736962251056,-151.0,0.00021232,2]
[349079173,1736962251066,-169.020396,0.00021232,2]
[349079174,1736962251076,-254.071342,0.00021232,2]
[349079175,1736962251086,-254.071342,0.00021232,2]
[349079176,1736962251095,-500.0,0.00021232,3]
[349079177,1736962251106,-299.18,0.00021232,3]
[349079178,1736962251116,-500.0,0.00021232,3]
[349079179,1736962251126,-564.31561625,0.00021232,3]
[349079180,1736962251136,-500.0,0.00021232,3]
[349079181,1736962251148,-500.0,0.00021232,3]
[349079182,1736962251158,-151.0,0.00021232,2]
[349079183,1736962251168,-500.0,0.00021232,3]
[349079184,1736962251178,-151.0,0.00021232,2]
[349079185,1736962251187,-151.0,0.00021232,2]
[349079186,1736962251197,-500.0,0.00021232,3]
[349079187,1736962251208,-592.3,0.00021232,2]
[349079188,1736962251219,-9748.22,0.00021232,3]
[349079189,1736962251229,-500.0,0.00021232,3]
[349079190,1736962251239,-376.48,0.00021232,3]
[349079191,1736962251249,-500.0,0.00021232,3]
[349079192,1736962251259,-812.23,0.00021232,3]
[349079193,1736962251269,-1119.83,0.00021232,3]
[349079194,1736962251279,-746.63,0.00021232,3]
[349079195,1736962251290,-396.93021224,0.00021232,3]
[349079196,1736962251300,-2491.16,0.00021232,3]
[349079197,1736962251310,-15248.44,0.00021232,3]
[349079198,1736962251320,-1461.28,0.00021232,3]
[349079199,1736962251330,-534.97,0.00021232,3]
[349079200,1736962251340,-1343.69,0.00021232,3]
[349079201,1736962251350,-500.0,0.00021232,3]
[349079202,1736962251360,-463.87,0.00021232,3]
[349079203,1736962251370,-1285.86,0.00021232,3]
[349079204,1736962251379,-500.0,0.00021232,3]
[349079205,1736962251391,-716.02,0.00021232,3]
[349079206,1736962251401,-627.74,0.00021232,3]
[349079207,1736962251411,-769.62,0.00021232,3]
[349079208,1736962251421,-151.0,0.00021232,2]
[349079209,1736962251431,-578.53,0.00021232,3]
[349079210,1736962251441,-4310.93,0.00021232,3]
[349079211,1736962251451,-500.0,0.00021232,3]
[349079212,1736962251461,-500.0,0.00021232,3]
[349079213,1736962251471,-3623.601474,0.00021232,2]
[349079214,1736962251481,-3623.601474,0.00021232,2]
[349079215,1736962251491,-500.0,0.00021232,3]
[349079216,1736962251501,-1228.19384605,0.00021279,2]
[349079217,1736962251510,-151.0,0.000213,4]
[349079218,1736962251520,-1000.0,0.00021311,2]
[349079219,1736962251530,-160.0,0.00021368,2]
[349079220,1736962251539,-151.0,0.00021369,2]
[349079221,1736962251548,-151.0,0.00021369,2]
[349079222,1736962251558,-500.0,0.00021369,3]
[349079223,1736962251568,-500.0,0.00021369,3]
[349079224,1736962251577,-172.4,0.00021369,3]
[349079225,1736962251587,-304.28,0.00021369,3]
[349079226,1736962251596,-500.0,0.00021369,3]
[349079227,1736962251605,-500.0,0.00021369,3]
[349079228,1736962251614,-592.3,0.00021369,2]
[349079229,1736962251624,-9748.22,0.00021369,3]
[349079230,1736962251634,-500.0,0.00021369,3]
[349079231,1736962251646,-500.0,0.00021369,3]
[349079232,1736962251655,-812.23,0.00021369,3]
[349079233,1736962251665,-1119.83,0.00021369,3]
[349079234,1736962251675,-746.63,0.00021369,3]
[349079235,1736962251685,-2491.16,0.00021369,3]
[349079236,1736962251695,-15248.44,0.00021369,3]
[349079237,1736962251707,-1461.28,0.00021369,3]
[349079238,1736962251716,-534.97,0.00021369,3]
[349079239,1736962251726,-1343.69,0.00021369,3]
[349079240,1736962251736,-468.84,0.00021369,3]
[349079241,1736962251746,-1285.86,0.00021369,3]
[349079242,1736962251756,-987.807811,0.00021369,2]
[349079243,1736962251765,-500.0,0.00021369,3]
[349079244,1736962251775,-987.807811,0.00021369,2]
[349079245,1736962251785,-716.02,0.00021369,3]
[349079246,1736962251795,-627.74,0.00021369,3]
[349079247,1736962251804,-769.62,0.00021369,3]
[349079248,1736962251814,-578.53,0.00021369,3]
[349079249,1736962251824,-4310.93,0.00021369,3]
[349079250,1736962251834,-500.0,0.00021369,3]
[349079251,1736962251844,-500.0,0.00021369,3]
[349079252,1736962251854,-500.0,0.00021369,3]
[349079253,1736962251863,-1226.170844,0.00021369,2]
[349079254,1736962251872,-1226.170844,0.00021369,2]
[349079255,1736962251881,-474.35951634,0.00021403,2]
[349079256,1736962251891,-1228.19384605,0.00021417,2]
[349079257,1736962251901,-654.79092281,0.00021427,2]
[349079258,1736962251980,-5562.34,0.000215,2]
[349079259,1736962251990,-172.31771198,0.00021505,2]
[349079260,1736962252000,-231.02,0.00021506,3]
[349079261,1736962252011,-151.0,0.00021506,2]
[349079262,1736962252020,-151.0,0.00021506,2]
[349079263,1736962252029,-500.0,0.00021506,3]
[349079264,1736962252039,-151.0,0.00021506,2]
[349079265,1736962252048,-4002.79478,0.00021506,2]
[349079266,1736962252058,-4002.79478,0.00021506,2]
[349079267,1736962252068,-500.0,0.00021506,3]
[349079268,1736962252077,-500.0,0.00021506,3]
[349079269,1736962252087,-592.3,0.00021506,2]
[349079270,1736962252097,-9748.22,0.00021506,3]
[349079271,1736962252107,-500.0,0.00021506,3]
[349079272,1736962252116,-500.0,0.00021506,3]
[349079273,1736962252126,-812.23,0.00021506,3]
[349079274,1736962252135,-1119.83,0.00021506,3]
[349079275,1736962252145,-746.63,0.00021506,3]
[349079276,1736962252155,-2491.16,0.00021506,3]
[349079277,1736962252164,-1323.747913,0.00021506,2]
[349079278,1736962252173,-1323.747913,0.00021506,2]
[349079279,1736962252183,-229.011764,0.00021506,2]
[349079280,1736962252193,-229.011764,0.00021506,2]
[349079281,1736962252202,-15248.44,0.00021506,3]
[349079282,1736962252214,-6530.198668,0.00021506,2]
[349079283,1736962252226,-2389.069578,0.00021506,2]
[349079284,1736962252236,-1461.28,0.00021506,3]
[349079285,1736962252246,-6530.198668,0.00021506,2]
[349079286,1736962252256,-2389.069578,0.00021506,2]
[349079287,1736962252266,-534.97,0.00021506,3]
[349079288,1736962252276,-1343.69,0.00021506,3]
[349079289,1736962252286,-151.0,0.00021506,2]
[349079290,1736962252296,-151.0,0.00021506,2]
[349079291,1736962252305,-1285.86,0.00021506,3]
[349079292,1736962252315,-500.0,0.00021506,3]
[349079293,1736962252325,-716.02,0.00021506,3]
[349079294,1736962252335,-627.74,0.00021506,3]
[349079295,1736962252344,-769.62,0.00021506,3]
[349079296,1736962252354,-578.53,0.00021506,3]
[349079297,1736962252363,-4310.93,0.00021506,3]
[349079298,1736962252373,-500.0,0.00021506,3]
[349079299,1736962252383,-500.0,0.00021506,3]
[349079300,1736962252397,-500.0,0.00021506,3]
[349079301,1736962252406,-234.9232278,0.00021507,2]
[349079302,1736962252418,-214.9766468,0.00021507,2]
[349079303,1736962252431,-153.9757311,0.00021507,2]
[349079304,1736962252441,-153.9757311,0.00021507,2]
[349079305,1736962252451,-153.8642603,0.00021507,2]
[349079306,1736962252460,-342.35635,0.00021507,2]
[349079307,1736962252470,-202.4887342,0.00021507,2]
[349079308,1736962252480,-1228.19384605,0.00021555,2]
[349079309,1736962252490,-3677.0,0.000216,4]
[349079310,1736962252499,-151.0,0.00021643,2]
[349079311,1736962252509,-151.0,0.00021643,2]
[349079312,1736962252519,-151.0,0.00021643,2]
[349079313,1736962252529,-151.0,0.00021643,2]
[349079314,1736962252538,-489.26,0.00021643,3]
[349079315,1736962252548,-500.0,0.00021643,3]
[349079316,1736962252558,-500.0,0.00021643,3]
[349079317,1736962252567,-592.3,0.00021643,2]
[349079318,1736962252578,-1020.063099,0.00021643,2]
[349079319,1736962252588,-1020.063099,0.00021643,2]
[349079320,1736962252598,-151.0,0.00021643,2]
[349079321,1736962252607,-9748.22,0.00021643,3]
[349079322,1736962252617,-151.0,0.00021643,2]
[349079323,1736962252627,-500.0,0.00021643,3]
[349079324,1736962252637,-500.0,0.00021643,3]
[349079325,1736962252648,-1351.9307,0.00021643,2]
[349079326,1736962252658,-1351.9307,0.00021643,2]
[349079327,1736962252668,-812.23,0.00021643,3]
[349079328,1736962252678,-1119.83,0.00021643,3]
[349079329,1736962252688,-746.63,0.00021643,3]
[349079330,1736962252701,-2491.16,0.00021643,3]
[349079331,1736962252718,-15248.44,0.00021643,3]
[349079332,1736962252731,-1461.28,0.00021643,3]
[349079333,1736962252743,-534.97,0.00021643,3]
[349079334,1736962252753,-1343.69,0.00021643,3]
[349079335,1736962252763,-161.704302,0.00021643,2]
[349079336,1736962252773,-161.704302,0.00021643,2]
[349079337,1736962252782,-1285.86,0.00021643,3]
[349079338,1736962252793,-500.0,0.00021643,3]
[349079339,1736962252803,-716.02,0.00021643,3]
[349079340,1736962252813,-627.74,0.00021643,3]
[349079341,1736962252822,-769.62,0.00021643,3]
[349079342,1736962252833,-578.53,0.00021643,3]
[349079343,1736962252843,-4310.93,0.00021643,3]
[349079344,1736962252853,-500.0,0.00021643,3]
[349079345,1736962252862,-500.0,0.00021643,3]
[349079346,1736962252871,-500.0,0.00021643,3]
[349079347,1736962252881,-1228.19384605,0.00021693,2]
[349079348,1736962252891,-603.39352439,0.00021713,2]
[349079349,1736962252904,-500.0,0.00021713,2]
[349079350,1736962252913,-151.0,0.0002178,2]
[349079351,1736962252924,-214.43047,0.0002178,2]
[349079352,1736962252934,-705.800601,0.0002178,2]
[349079353,1736962252944,-705.800601,0.0002178,2]
[349079354,1736962252955,-151.0,0.0002178,2]
[349079355,1736962252964,-151.0,0.0002178,2]
[349079356,1736962252974,-151.0,0.0002178,2]
[349079357,1736962252984,-500.0,0.0002178,3]
[349079358,1736962252994,-2134.174093,0.0002178,2]
[349079359,1736962253003,-2134.174093,0.0002178,2]
[349079360,1736962253012,-480.67,0.0002178,3]
[349079361,1736962253022,-246.465667,0.0002178,2]
[349079362,1736962253032,-592.3,0.0002178,2]
[349079363,1736962253041,-309.282555,0.0002178,2]
[349079364,1736962253051,-309.282555,0.0002178,2]
[349079365,1736962253060,-216.489252,0.0002178,2]
[349079366,1736962253071,-216.489252,0.0002178,2]
[349079367,1736962253081,-9748.22,0.0002178,3]
[349079368,1736962253091,-500.0,0.0002178,3]
[349079369,1736962253100,-324.28,0.0002178,3]
[349079370,1736962253111,-1002.999865,0.0002178,2]
[349079371,1736962253121,-1002.999865,0.0002178,2]
[349079372,1736962253131,-812.23,0.0002178,3]
[349079373,1736962253140,-1119.83,0.0002178,3]
[349079374,1736962253153,-746.63,0.0002178,3]
[349079375,1736962253163,-2491.16,0.0002178,3]
[349079376,1736962253173,-15248.44,0.0002178,3]
[349079377,1736962253183,-1461.28,0.0002178,3]
[349079378,1736962253193,-534.97,0.0002178,3]
[349079379,1736962253203,-1343.69,0.0002178,3]
[349079380,1736962253213,-1285.86,0.0002178,3]
[349079381,1736962253223,-500.0,0.0002178,3]
[349079382,1736962253233,-716.02,0.0002178,3]
[349079383,1736962253243,-627.74,0.0002178,3]
[349079384,1736962253253,-769.62,0.0002178,3]
[349079385,1736962253264,-151.0,0.0002178,2]
[349079386,1736962253274,-578.53,0.0002178,3]
[349079387,1736962253285,-4310.93,0.0002178,3]
[349079388,1736962253295,-500.0,0.0002178,3]
[349079389,1736962253305,-500.0,0.0002178,3]
[349079390,1736962253315,-3623.601474,0.0002178,2]
[349079391,1736962253325,-3623.601474,0.0002178,2]
[349079392,1736962253335,-596.14,0.0002178,3]
[349079393,1736962253345,-654.79092281,0.00021781,2]
[349079394,1736962253355,-1228.19384605,0.00021831,2]
[349079395,1736962253365,-500.0,0.0002188,2]
[349079396,1736962253374,-1734.40685843,0.0002189,3]
[349079397,1736962253384,-1500.0,0.00021891,2]
[349079398,1736962253397,-152.18,0.00021915,2]
[349079399,1736962253407,-21335.3206971,0.00021917,3]
[349079400,1736962253416,-151.0,0.00021917,2]
[349079401,1736962253426,-646.285619,0.00021917,2]
[349079402,1736962253436,-646.285619,0.00021917,2]
[349079403,1736962253446,-151.0,0.00021917,2]
[349079404,1736962253455,-500.0,0.00021917,3]
[349079405,1736962253529,-500.0,0.00021917,3]
[349079406,1736962253539,-151.0,0.00021917,2]
[349079407,1736962253549,-169.020396,0.00021917,2]
[349079408,1736962253559,-151.0,0.00021917,2]
[349079409,1736962253568,-169.020396,0.00021917,2]
[349079410,1736962253578,-254.071342,0.00021917,2]
[349079411,1736962253588,-254.071342,0.00021917,2]
[349079412,1736962253597,-1101.07305054,0.00021917,30]
[349079413,1736962253607,-151.0,0.00021917,2]
[349079414,1736962253617,-500.0,0.00021917,3]
[349079415,1736962253626,-151.0,0.00021917,2]
[349079416,1736962253636,-151.0,0.00021917,2]
[349079417,1736962253646,-592.3,0.00021917,2]
[349079418,1736962253655,-795.0,0.00021917,2]
[349079419,1736962253666,-9748.22,0.00021917,3]
[349079420,1736962253675,-500.0,0.00021917,3]
[349079421,1736962253685,-812.23,0.00021917,3]
[349079422,1736962253695,-1119.83,0.00021917,3]
[349079423,1736962253707,-746.63,0.00021917,3]
[349079424,1736962253716,-2491.16,0.00021917,3]
[349079425,1736962253726,-15248.44,0.00021917,3]
[349079426,1736962253737,-1461.28,0.00021917,3]
[349079427,1736962253747,-534.97,0.00021917,3]
[349079428,1736962253757,-1343.69,0.00021917,3]
[349079429,1736962253767,-1285.86,0.00021917,3]
[349079430,1736962253777,-987.807811,0.00021917,2]
[349079431,1736962253787,-500.0,0.00021917,3]
[349079432,1736962253797,-987.807811,0.00021917,2]
[349079433,1736962253807,-716.02,0.00021917,3]
[349079434,1736962253818,-627.74,0.00021917,3]
[349079435,1736962253828,-769.62,0.00021917,3]
[349079436,1736962253838,-578.53,0.00021917,3]
[349079437,1736962253849,-4310.93,0.00021917,3]
[349079438,1736962253859,-500.0,0.00021917,3]
[349079439,1736962253868,-500.0,0.00021917,3]
[349079440,1736962253878,-1226.170844,0.00021917,2]
[349079441,1736962253887,-823.0,0.00021959,2]
[349079442,1736962253899,-1228.19384605,0.00021969,2]
[349079443,1736962253908,-3000.000001,0.00022,2]
[349079444,1736962253919,-1000.0,0.00022,22]
[349079445,1736962253928,-1000.0,0.00022,5]
[349079446,1736962253938,-151.0,0.00022,7]
[349079447,1736962253948,-9939.78,0.00022,2]
[349079448,1736962253957,-4086.23353367,0.00022,15]
[349079449,1736962254051,-7236.20797811,0.00022,15]
[349079450,1736962254067,-4375.47,0.00022,15]
[349079451,1736962254079,-535.84346821,0.00022,15]
[349079452,1736962254091,-7459.98419949,0.00022,15]
[349079453,1736962254102,-2575.34233914,0.00022,15]
[349079454,1736962254114,-1161.87135819,0.00022,15]
[349079455,1736962254126,-3639.48663561,0.00022,15]
[349079456,1736962260091,4751.0,0.00025,120]
[349079485,1736963148502,253.510083,0.00013973,2]
[349079487,1736963243911,1109.4,0.00025,120]
[349079488,1736963261175,157.392027,0.0002411,120]
[349079489,1736963325901,91000.0,0.00015045,7]
[349079490,1736963349705,6861.0,0.00025,120]
[349079512,1736963432644,-192.4837573,0.00018384,2]
[349079513,1736963432655,-1869.18678899,0.00018512,2]
[349079514,1736963432664,-1869.18678896,0.00018538,2]
[349079515,1736963432674,-1869.18678896,0.00018564,2]
[349079516,1736963432684,-1869.18678896,0.00018589,2]
[349079517,1736963432693,-1593.2386582,0.00018612,2]
[349079518,1736963432703,-663.53042864,0.00018615,2]
[349079519,1736963432715,-1205.65636032,0.00018615,2]
[349079520,1736963432724,-1869.18678896,0.00018641,2]
[349079521,1736963432734,-300.0,0.00018741,2]
[349079522,1736963432744,-985.58837888,0.000189,2]
[349079523,1736963432754,-500.0,0.00019178,2]
[349079524,1736963432763,-500.0,0.00019178,2]
[349079525,1736963432773,-500.0,0.00019178,2]
[349079526,1736963432782,-500.0,0.00019178,2]
[349079527,1736963432792,-500.0,0.00019178,2]
[349079528,1736963432802,-500.0,0.00019178,2]
[349079529,1736963432811,-500.0,0.00019178,2]
[349079530,1736963432821,-506.29421908,0.00019178,2]
[349079531,1736963432831,-500.0,0.00019178,2]
[349079532,1736963432840,-500.0,0.00019178,2]
[349079533,1736963432849,-371.28858741,0.00019178,2]
[349079534,1736963432859,-500.0,0.00019178,2]
[349079535,1736963432869,-194.46,0.00019178,2]
[349079536,1736963432877,-500.0,0.00019178,2]
[349079537,1736963432886,-500.0,0.00019178,2]
[349079538,1736963432894,-507.44777956,0.00019178,2]
[349079539,1736963432903,-500.0,0.00019178,2]
[349079540,1736963432911,-500.0,0.00019178,2]
[349079541,1736963432921,-609.30933581,0.00019178,2]
[349079542,1736963432930,-564.17,0.00019178,2]
[349079543,1736963432939,-500.0,0.00019178,2]
[349079544,1736963432948,-500.0,0.00019178,2]
[349079545,1736963432957,-500.0,0.00019178,2]
[349079546,1736963432967,-500.0,0.00019178,2]
[349079547,1736963432976,-188.0,0.00019178,2]
[349079548,1736963432985,-500.0,0.00019178,2]
[349079549,1736963432995,-500.0,0.00019178,2]
[349079550,1736963433004,-500.0,0.00019178,2]
[349079551,1736963433013,-179.83818306,0.00019178,2]
[349079552,1736963433023,-1145.06,0.00019178,2]
[349079553,1736963433032,-500.0,0.00019178,2]
[349079554,1736963433042,-1906.05,0.00019178,2]
[349079555,1736963433052,-500.0,0.00019178,2]
[349079556,1736963433061,-500.0,0.00019178,2]
[349079557,1736963433071,-500.0,0.00019178,2]
[349079558,1736963433081,-500.0,0.00019178,2]
[349079559,1736963433092,-500.0,0.00019178,2]
[349079560,1736963433102,-500.0,0.00019178,2]
[349079561,1736963433114,-500.0,0.00019178,2]
[349079562,1736963433123,-620.27,0.00019178,2]
[349079563,1736963433134,-500.0,0.00019178,2]
[349079564,1736963433144,-500.0,0.00019178,2]
[349079565,1736963433154,-538.87,0.00019178,2]
[349079566,1736963433163,-500.0,0.00019178,2]
[349079567,1736963433174,-500.0,0.00019178,2]
[349079568,1736963433184,-500.0,0.00019178,2]
[349079569,1736963433193,-500.0,0.00019178,2]
[349079570,1736963433203,-500.0,0.00019178,2]
[349079571,1736963433213,-500.0,0.00019178,2]
[349079572,1736963433223,-467.8135457,0.00019178,2]
[349079573,1736963433233,-641.48,0.00019178,2]
[349079574,1736963433242,-1218.52,0.00019178,2]
[349079575,1736963433252,-500.0,0.00019178,2]
[349079576,1736963433261,-163.82,0.00019178,2]
[349079577,1736963433271,-565.00843894,0.00019315,3]
[349079578,1736963433280,-500.0,0.00019315,3]
[349079579,1736963433290,-500.0,0.00019315,3]
[349079580,1736963433299,-500.0,0.00019315,3]
[349079581,1736963433308,-583.89830634,0.00019315,3]
[349079582,1736963433318,-500.0,0.00019315,3]
[349079583,1736963433328,-500.0,0.00019315,3]
[349079584,1736963433337,-500.0,0.00019315,3]
[349079585,1736963433347,-500.0,0.00019315,3]
[349079586,1736963433357,-530.7901522,0.00019315,3]
[349079587,1736963433368,-500.0,0.00019315,3]
[349079588,1736963433378,-333.7,0.00019315,3]
[349079589,1736963433388,-500.0,0.00019315,2]
[349079590,1736963433398,-1145.06,0.00019315,3]
[349079591,1736963433408,-500.0,0.00019315,3]
[349079592,1736963433418,-1906.05,0.00019315,3]
[349079593,1736963433428,-500.0,0.00019315,3]
[349079594,1736963433438,-500.0,0.00019315,3]
[349079595,1736963433448,-500.0,0.00019315,3]